fUSD/lending_fUSD_20260518
["ID","MTS","AMOUNT","RATE_DAILY","PERIOD"]
[422573987,1779112240000,-500.0,0.00014999,2]
[422573989,1779112240000,-500.0,0.00014999,2]
[422574025,1779112240000,-500.0,0.00014999,2]
[422574019,1779112240000,-500.0,0.00014999,2]
[422574015,1779112240000,-434.68248138,0.00014999,2]
[422574039,1779112240000,-500.0,0.00014999,2]
[422573995,1779112240000,-405.29129272,0.00014999,2]
[422574023,1779112240000,-500.0,0.00014999,2]
[422574013,1779112240000,-500.0,0.00014999,2]
[422573998,1779112240000,-500.0,0.00014999,2]
[422574006,1779112240000,-500.0,0.00014999,2]
[422574004,1779112240000,-500.0,0.00014999,2]
[422574011,1779112240000,-500.0,0.00014999,2]
[422574016,1779112240000,-500.0,0.00014999,2]
[422574060,1779112240000,-500.0,0.00014999,2]
[422573986,1779112240000,-500.0,0.00014999,2]
[422574032,1779112240000,-500.0,0.00014999,2]
[422574040,1779112240000,-500.0,0.00014999,2]
[422574038,1779112240000,-500.0,0.00014999,2]
[422574027,1779112240000,-500.0,0.00014999,2]
[422573991,1779112240000,-500.0,0.00014999,2]
[422573985,1779112240000,-500.0,0.00014999,2]
[422573983,1779112240000,-500.0,0.00014999,2]
[422573993,1779112240000,-500.0,0.00014999,2]
[422574002,1779112240000,-404.1758266,0.00014999,2]
[422574000,1779112240000,-500.0,0.00014999,2]
[422574009,1779112240000,-500.0,0.00014999,2]
[422573988,1779112240000,-500.0,0.00014999,2]
[422574068,1779112241000,-500.0,0.00014999,2]
[422574077,1779112241000,-30730.0,0.00015,2]
[422574069,1779112241000,-500.0,0.00014999,2]
[422574075,1779112241000,-300.0,0.00014999,2]
[422574072,1779112241000,-531.13887723,0.00014999,2]
[422574076,1779112241000,-1845957.14523057,0.00015,2]
[422574073,1779112241000,-243.96433052,0.00014999,2]
[422574071,1779112241000,-500.0,0.00014999,2]
[422574067,1779112241000,-500.0,0.00014999,2]
[422574070,1779112241000,-500.0,0.00014999,2]
[422574074,1779112241000,-300.0,0.00014999,2]
[422574079,1779112241000,-32508.88239924,0.00015,2]
[422574081,1779112241000,-3000.93304004,0.00015,2]
[422574078,1779112241000,-9968.24281216,0.00015,2]
[422574080,1779112241000,-2095.592,0.00015,2]
[422574099,1779112243000,-1002.31110681,0.00015,2]
[422574100,1779112243000,-375138.27007771,0.00015,2]
[422574101,1779112243000,-2327.70552355,0.00015,2]
[422574120,1779112245000,-5987.3849,0.00015,2]
[422574121,1779112246000,-2034.65,0.00015,2]
[422574191,1779112320000,241.249932,0.000245,120]
[422574192,1779112365000,151.0,0.0003,120]
[422574194,1779112714000,888.0,0.00030137,120]
[422574195,1779112722000,888.0,0.00030137,120]
[422574196,1779112726000,504.66535517,0.00030137,120]
[422574197,1779112731000,888.88,0.00030137,120]
[422574198,1779112746000,888.88,0.00030137,120]
[422574199,1779112758000,2000.0,0.00030137,120]
[422574200,1779112774000,666.66,0.00030137,120]
[422574201,1779112792000,293.0,0.00030137,120]
[422574203,1779112854000,517.64827982,0.00030136,120]
[422574208,1779112895000,909.4,0.000294,120]
[422574214,1779113204000,500.0,0.00029452,120]
[422574215,1779113341000,1000.0,0.00030136,120]
[422574230,1779113432000,-500.0,0.00013789,2]
[422574224,1779113432000,-154.74,0.00013775,2]
[422574226,1779113432000,-300.0,0.00013788,2]
[422574228,1779113432000,-551.46,0.00013789,2]
[422574227,1779113432000,-1200.0,0.00013788,2]
[422574225,1779113432000,-150.0,0.00013788,2]
[422574220,1779113432000,-167.35,0.00013699,2]
[422574231,1779113432000,-500.0,0.00013789,2]
[422574221,1779113432000,-200.0,0.00013699,2]
[422574223,1779113432000,-525.44,0.0001374,2]
[422574219,1779113432000,-150.48,0.00013652,2]
[422574217,1779113432000,-2648.76,0.00013452,2]
[422574218,1779113432000,-150.0,0.00013488,2]
[422574216,1779113432000,-152.0,0.00011768,2]
[422574229,1779113432000,-500.0,0.00013789,2]
[422574222,1779113432000,-566.80050551,0.00013712,2]
[422574232,1779113432000,-500.0,0.00013789,2]
[422574234,1779113432000,-219.25333852,0.00013789,2]
[422574233,1779113432000,-500.0,0.00013789,2]
[422574252,1779113432000,-933.29910589,0.0001379,2]
[422574251,1779113432000,-642.03266483,0.0001379,2]
[422574235,1779113432000,-500.0,0.00013789,2]
[422574246,1779113432000,-1547.40244283,0.0001379,2]
[422574247,1779113432000,-525.44413228,0.0001379,2]
[422574249,1779113432000,-594.51805,0.0001379,2]
[422574244,1779113432000,-14988.58383382,0.0001379,2]
[422574245,1779113432000,-3993.80444737,0.0001379,2]
[422574250,1779113432000,-6385.02318394,0.0001379,2]
[422574243,1779113432000,-70446.61607199,0.0001379,2]
[422574240,1779113432000,-3302.03610933,0.0001379,2]
[422574239,1779113432000,-473.28004664,0.00013789,2]
[422574241,1779113432000,-416.07694567,0.0001379,2]
[422574238,1779113432000,-500.0,0.00013789,2]
[422574237,1779113432000,-500.0,0.00013789,2]
[422574236,1779113432000,-500.0,0.00013789,2]
[422574248,1779113432000,-2666.56882091,0.0001379,2]
[422574346,1779113440000,-420.13838643,0.00013789,2]
[422574349,1779113440000,-585.25089225,0.0001379,2]
[422574347,1779113440000,-79.86161357,0.00013789,2]
[422574351,1779113440000,-2740.0,0.0001379,2]
[422574350,1779113440000,-505.46418792,0.0001379,2]
[422574348,1779113440000,-266.68509741,0.0001379,2]
[422574369,1779113443000,-5000.0,0.000145,5]
[422574371,1779113443000,-167.35,0.00014589,2]
[422574370,1779113443000,-566.80050545,0.00014504,2]
[422574372,1779113443000,-6300.0,0.000146,5]
[422574367,1779113443000,-566.80050545,0.00014372,2]
[422574368,1779113443000,-3800.0,0.000144,5]
[422574373,1779113443000,-566.80050545,0.00014636,2]
[422574365,1779113443000,-566.80050545,0.0001424,2]
[422574375,1779113443000,-1200.0,0.000147,5]
[422574374,1779113443000,-250.0,0.00014676,2]
[422574364,1779113443000,-1200.0,0.000142,5]
[422574362,1779113443000,-566.80050545,0.00014108,2]
[422574363,1779113443000,-37137.78208363,0.000142,2]
[422574360,1779113443000,-566.80050545,0.00013844,2]
[422574361,1779113443000,-566.80050545,0.00013976,2]
[422574358,1779113443000,-158462.61161356,0.0001379,2]
[422574359,1779113443000,-2000.0,0.00013812,2]
[422574366,1779113443000,-2500.0,0.000143,5]
[422574377,1779113443000,-1200.0,0.000148,5]
[422574381,1779113443000,-1481.90014808,0.000149,2]
[422574386,1779113443000,-255.0,0.00014905,2]
[422574396,1779113443000,-1570.19295856,0.00014989,2]
[422574395,1779113443000,-291.6370695,0.00014989,2]
[422574394,1779113443000,-1023.4842458,0.00014989,2]
[422574392,1779113443000,-10530.651,0.00014989,2]
[422574393,1779113443000,-115.06348372,0.00014989,2]
[422574390,1779113443000,-212.25158258,0.00014989,2]
[422574388,1779113443000,-8273.4809261,0.00014989,2]
[422574391,1779113443000,-10508.65933396,0.00014989,2]
[422574397,1779113443000,-9492.80789,0.00014989,2]
[422574389,1779113443000,-11140.61090584,0.00014989,2]
[422574387,1779113443000,-291.6370698,0.00014989,2]
[422574379,1779113443000,-596.79784926,0.000149,2]
[422574378,1779113443000,-206.55345517,0.000149,2]
[422574380,1779113443000,-1200.0,0.000149,5]
[422574376,1779113443000,-566.80050545,0.00014768,2]
[422574383,1779113443000,-4194.93085442,0.000149,2]
[422574385,1779113443000,-282.94780316,0.000149,2]
[422574382,1779113443000,-566.80050545,0.000149,2]
[422574384,1779113443000,-1222.58361253,0.000149,3]
[422574399,1779113446000,-3872.17973424,0.00014989,2]
[422574478,1779113538000,217.98463,0.00023374,120]
[422574479,1779113569000,301.68,0.00025567,120]
[422574480,1779113569000,301.68,0.00027892,120]
[422574481,1779113579000,1074.063931,0.00022907,120]
[422574482,1779113603000,2000.0,0.00028029,120]
[422574483,1779113730000,151.53,7.381e-05,2]
[422574485,1779113741000,198.00075388,0.00027775,120]
[422574486,1779114095000,299.58,0.00029,120]
[422574487,1779114142000,150.0,0.0003,120]
[422574488,1779114299000,150.0,0.0003,120]
[422574489,1779114342000,150.0,0.0003,120]
[422574491,1779114349000,465.82011856,0.00027625,120]
[422574490,1779114349000,465.82011856,0.00027471,120]
[422574492,1779114359000,220.0,0.00030137,120]
[422574493,1779114413000,-150.0,0.00013488,2]
[422574494,1779114413000,-49.11874836,0.00013488,2]
[422574580,1779114487000,1653.0,0.00027945,120]
[422574615,1779114540000,1000.0,0.00030136,120]
[422574616,1779114554000,165.63,0.00010458,2]
[422574617,1779114568000,160.94466338,0.00026819,120]
[422574618,1779114568000,188.77437176,0.00026819,120]
[422574619,1779114591000,150.0,0.0003,120]
[422574623,1779114631000,150.0,0.000301,120]
[422574643,1779114632000,-200.0,0.000138,5]
[422574638,1779114632000,-1200.0,0.00013588,2]
[422574645,1779114632000,-166.66,0.00013846,2]
[422574641,1779114632000,-200.0,0.00013699,2]
[422574644,1779114632000,-481.79,0.00013824,2]
[422574648,1779114632000,-150.0,0.00013923,2]
[422574649,1779114632000,-170.40944986,0.00013928,2]
[422574647,1779114632000,-500.0,0.000139,5]
[422574646,1779114632000,-150.0,0.00013862,2]
[422574650,1779114632000,-170.40944986,0.00013928,2]
[422574652,1779114632000,-3869.62851277,0.00014037,2]
[422574642,1779114632000,-500.0,0.00013789,2]
[422574640,1779114632000,-166.66,0.00013699,2]
[422574630,1779114632000,-100.88125164,0.00013488,2]
[422574632,1779114632000,-150.0,0.00013488,2]
[422574631,1779114632000,-150.0,0.00013488,2]
[422574629,1779114632000,-150.73392658,0.00013388,2]
[422574633,1779114632000,-150.0,0.00013488,2]
[422574634,1779114632000,-150.0,0.00013488,2]
[422574628,1779114632000,-84.00091776,0.00013346,2]
[422574636,1779114632000,-18966.2295,0.0001349,2]
[422574637,1779114632000,-481.79,0.00013495,2]
[422574626,1779114632000,-481.79,0.00013166,2]
[422574635,1779114632000,-294.6376,0.0001349,2]
[422574627,1779114632000,-415.99908224,0.00013346,2]
[422574625,1779114632000,-377.19,0.00013166,2]
[422574639,1779114632000,-150.0,0.00013589,2]
[422574662,1779114632000,-500.0,0.00014063,2]
[422574651,1779114632000,-166.66,0.00013994,2]
[422574664,1779114632000,-475.11845023,0.00014063,2]
[422574661,1779114632000,-500.0,0.00014063,2]
[422574706,1779114632000,-50307.41783105,0.00014064,2]
[422574697,1779114632000,-480.07323018,0.00014064,2]
[422574704,1779114632000,-4013.10844987,0.00014064,2]
[422574702,1779114632000,-987.95536,0.00014064,2]
[422574699,1779114632000,-1356.23989523,0.00014064,2]
[422574693,1779114632000,-672.09,0.00014064,2]
[422574690,1779114632000,-607.56498033,0.00014064,2]
[422574688,1779114632000,-697.74195454,0.00014064,2]
[422574685,1779114632000,-8732.43012666,0.00014064,2]
[422574679,1779114632000,-1421.69894956,0.00014064,2]
[422574676,1779114632000,-1643.28648699,0.00014064,2]
[422574683,1779114632000,-391.88,0.00014064,2]
[422574695,1779114632000,-884.94274319,0.00014064,2]
[422574670,1779114632000,-13746.11109685,0.00014064,2]
[422574654,1779114632000,-4235.94038598,0.00014042,2]
[422574680,1779114632000,-335.72,0.00014064,2]
[422574660,1779114632000,-500.0,0.00014063,2]
[422574656,1779114632000,-173.24214636,0.00014054,2]
[422574653,1779114632000,-511.54101366,0.00014042,2]
[422574655,1779114632000,-858.27266467,0.00014042,2]
[422574657,1779114632000,-500.0,0.00014063,2]
[422574659,1779114632000,-500.0,0.00014063,2]
[422574666,1779114632000,-410.28148724,0.00014063,2]
[422574674,1779114632000,-8306.21270064,0.00014064,2]
[422574668,1779114632000,-447.92694372,0.00014063,2]
[422574672,1779114632000,-38572.21310303,0.00014064,2]
[422574658,1779114632000,-500.0,0.00014063,2]
[422574752,1779114641000,-166.66,0.0001429,2]
[422574757,1779114641000,-800.0,0.000144,5]
[422574753,1779114641000,-500.0,0.00014328,2]
[422574758,1779114641000,-3869.62851275,0.00014407,2]
[422574759,1779114641000,-4235.94038595,0.00014423,2]
[422574756,1779114641000,-858.27266464,0.00014328,2]
[422574754,1779114641000,-511.5410136,0.00014328,2]
[422574760,1779114641000,-858.27266464,0.00014423,2]
[422574768,1779114641000,-3869.62851275,0.0001453,2]
[422574763,1779114641000,-150.48,0.00014474,2]
[422574762,1779114641000,-511.5410136,0.00014471,2]
[422574761,1779114641000,-166.66,0.00014438,2]
[422574766,1779114641000,-4235.94038595,0.00014519,2]
[422574765,1779114641000,-1100.0,0.000145,5]
[422574767,1779114641000,-858.27266464,0.00014519,2]
[422574770,1779114641000,-500.0,0.00014602,2]
[422574755,1779114641000,-4235.94038595,0.00014328,2]
[422574764,1779114641000,-481.79,0.00014483,2]
[422574751,1779114641000,-3869.62851275,0.00014284,2]
[422574737,1779114641000,-166.66,0.00014142,2]
[422574750,1779114641000,-2772.44,0.00014266,2]
[422574771,1779114641000,-150.0,0.00014612,2]
[422574732,1779114641000,-465.97624989,0.00014064,2]
[422574733,1779114641000,-2813.27846022,0.00014064,2]
[422574736,1779114641000,-858.27266464,0.00014137,2]
[422574734,1779114641000,-1363564.05838177,0.00014064,2]
[422574735,1779114641000,-4235.94038595,0.00014137,2]
[422574739,1779114641000,-3869.62851275,0.0001416,2]
[422574738,1779114641000,-481.79,0.00014154,2]
[422574740,1779114641000,-166.68,0.00014163,2]
[422574741,1779114641000,-1022.0392001,0.00014164,2]
[422574746,1779114641000,-474.35,0.00014192,2]
[422574745,1779114641000,-511.5410136,0.00014185,2]
[422574748,1779114641000,-858.27266464,0.00014233,2]
[422574742,1779114641000,-5590.178861,0.00014164,2]
[422574744,1779114641000,-8743.5067061,0.0001417,2]
[422574747,1779114641000,-4235.94038595,0.00014233,2]
[422574743,1779114641000,-1371.4860077,0.00014164,2]
[422574749,1779114641000,-150.0,0.00014237,2]
[422574769,1779114641000,-1400.0,0.000146,5]
[422574838,1779114641000,-987.93343206,0.000149,2]
[422574774,1779114641000,-858.27266464,0.00014614,2]
[422574815,1779114641000,-206.14319,0.0001485,2]
[422574826,1779114641000,-2500.0,0.000149,2]
[422574828,1779114641000,-200.0,0.000149,5]
[422574830,1779114641000,-511.5410136,0.000149,2]
[422574818,1779114641000,-208.32800392,0.000149,2]
[422574816,1779114641000,-200.0,0.0001488,2]
[422574820,1779114641000,-529.61626132,0.000149,3]
[422574822,1779114641000,-5000.0,0.000149,2]
[422574834,1779114641000,-858.27266464,0.000149,2]
[422574836,1779114641000,-3869.62851275,0.000149,2]
[422574848,1779114641000,-500.0,0.00014983,2]
[422574840,1779114641000,-25000.0,0.000149,3]
[422574846,1779114641000,-1680.0,0.00014947,2]
[422574844,1779114641000,-188.63186878,0.000149,2]
[422574842,1779114641000,-2796.62056962,0.000149,2]
[422574850,1779114641000,-2374.905,0.00014983,2]
[422574772,1779114641000,-511.5410136,0.00014614,2]
[422574824,1779114641000,-426.02784794,0.000149,3]
[422574812,1779114641000,-206.14319,0.0001485,2]
[422574832,1779114641000,-4235.94038595,0.000149,2]
[422574809,1779114641000,-206.14319,0.0001485,2]
[422574811,1779114641000,-206.14319,0.0001485,2]
[422574780,1779114641000,-858.27266464,0.00014709,2]
[422574782,1779114641000,-700.0,0.00014729,2]
[422574786,1779114641000,-3869.62851275,0.00014777,2]
[422574775,1779114641000,-3869.62851275,0.00014653,2]
[422574784,1779114641000,-511.5410136,0.00014757,2]
[422574776,1779114641000,-200.0,0.000147,5]
[422574788,1779114641000,-34920.8537,0.00014795,2]
[422574778,1779114641000,-4235.94038595,0.00014709,2]
[422574773,1779114641000,-4235.94038595,0.00014614,2]
[422574777,1779114641000,-255.0,0.00014703,2]
[422574790,1779114641000,-200.0,0.000148,5]
[422574794,1779114641000,-858.27266464,0.00014805,2]
[422574802,1779114641000,-186.0,0.00014844,2]
[422574800,1779114641000,-300.0,0.00014836,2]
[422574807,1779114641000,-206.14319,0.0001485,2]
[422574805,1779114641000,-206.14319,0.0001485,2]
[422574793,1779114641000,-4235.94038595,0.00014805,2]
[422574890,1779114642000,-4629018.45076749,0.00015,2]
[422574889,1779114642000,-1918.56940599,0.00015,2]
[422574894,1779114642000,-1000.0,0.00015,2]
[422574892,1779114642000,-2100.0,0.00015,2]
[422574887,1779114642000,-3832.1,0.00015,2]
[422574888,1779114642000,-2307.73880796,0.00015,2]
[422574883,1779114642000,-300.0,0.00014999,2]
[422574891,1779114642000,-807.13,0.00015,2]
[422574893,1779114642000,-1000.0,0.00015,2]
[422574898,1779114642000,-7898124.80755605,0.00015,2]
[422574905,1779114642000,-500.0,0.00015,2]
[422574900,1779114642000,-1452.66334849,0.00015,2]
[422574906,1779114642000,-500.0,0.00015,2]
[422574897,1779114642000,-151.55626079,0.00015,2]
[422574902,1779114642000,-500.0,0.00015,2]
[422574903,1779114642000,-500.0,0.00015,2]
[422574904,1779114642000,-500.0,0.00015,2]
[422574896,1779114642000,-151.0,0.00015,2]
[422574901,1779114642000,-500.0,0.00015,2]
[422574884,1779114642000,-666.0,0.00014999,2]
[422574895,1779114642000,-389.78469372,0.00015,2]
[422574886,1779114642000,-247993.48255698,0.00015,2]
[422574856,1779114642000,-150.00000001,0.00014986,2]
[422574876,1779114642000,-500.0,0.00014999,2]
[422574852,1779114642000,-178.344,0.00014983,2]
[422574854,1779114642000,-150.0,0.00014986,2]
[422574907,1779114642000,-500.0,0.00015,2]
[422574858,1779114642000,-150.0,0.00014986,2]
[422574860,1779114642000,-150.00000001,0.00014986,2]
[422574865,1779114642000,-173.24214636,0.0001499,2]
[422574863,1779114642000,-4055.5876727,0.00014989,2]
[422574862,1779114642000,-6636.9616182,0.00014989,2]
[422574867,1779114642000,-173.24214636,0.0001499,2]
[422574885,1779114642000,-1993.0,0.00015,5]
[422574877,1779114642000,-500.0,0.00014999,2]
[422574880,1779114642000,-300.0,0.00014999,2]
[422574874,1779114642000,-500.0,0.00014999,2]
[422574869,1779114642000,-500.0,0.00014999,2]
[422574871,1779114642000,-500.0,0.00014999,2]
[422574882,1779114642000,-666.0,0.00014999,2]
[422574878,1779114642000,-500.0,0.00014999,2]
[422574881,1779114642000,-300.0,0.00014999,2]
[422574875,1779114642000,-500.0,0.00014999,2]
[422574873,1779114642000,-500.0,0.00014999,2]
[422574879,1779114642000,-180.77412901,0.00014999,2]
[422574913,1779114642000,-500.0,0.00015,2]
[422574899,1779114642000,-660194.10725584,0.00015,2]
[422574909,1779114642000,-500.0,0.00015,2]
[422574933,1779114642000,-350.0,0.00015629,2]
[422574939,1779114642000,-151.0,0.00016438,2]
[422574940,1779114642000,-151.0,0.00016438,2]
[422574934,1779114642000,-5008.50135818,0.00015639,2]
[422574936,1779114642000,-433.0,0.00015913,2]
[422574941,1779114642000,-2351.0,0.00016441,2]
[422574944,1779114642000,-166.68,0.000165,2]
[422574942,1779114642000,-186.0,0.0001645,2]
[422574949,1779114642000,-384.82127172,0.00018179,2]
[422574954,1779114642000,-2000.0,0.00018686,2]
[422574946,1779114642000,-736.0,0.00017217,2]
[422574947,1779114642000,-250.0,0.00017397,2]
[422574945,1779114642000,-150.0,0.00016938,2]
[422574953,1779114642000,-987.0,0.00018631,2]
[422574952,1779114642000,-301.68,0.00018594,2]
[422574951,1779114642000,-377.19,0.00018432,2]
[422574950,1779114642000,-275.8,0.0001841,2]
[422574956,1779114642000,-469.01,0.0001872,2]
[422574955,1779114642000,-842.81,0.0001872,2]
[422574912,1779114642000,-500.0,0.00015,2]
[422574957,1779114642000,-679.84,0.0001872,2]
[422574938,1779114642000,-215.11887611,0.00016133,2]
[422574937,1779114642000,-200.0,0.00016122,2]
[422574948,1779114642000,-3292.0,0.00018086,2]
[422574932,1779114642000,-350.0,0.00015587,2]
[422574910,1779114642000,-500.0,0.00015,2]
[422574911,1779114642000,-500.0,0.00015,2]
[422574935,1779114642000,-201.9544886,0.00015653,2]
[422574914,1779114642000,-500.0,0.00015,2]
[422574918,1779114642000,-151.0,0.00015,2]
[422574908,1779114642000,-500.0,0.00015,2]
[422574916,1779114642000,-482.689254,0.00015,2]
[422574919,1779114642000,-151.0,0.00015,2]
[422574915,1779114642000,-500.0,0.00015,2]
[422574920,1779114642000,-153.079842,0.00015,2]
[422574917,1779114642000,-151.0,0.00015,2]
[422574924,1779114642000,-153.874212,0.00015,2]
[422574931,1779114642000,-350.0,0.0001551,2]
[422574922,1779114642000,-151.0,0.00015,2]
[422574923,1779114642000,-151.0,0.00015,2]
[422574925,1779114642000,-152.529896,0.00015,2]
[422574926,1779114642000,-151.0,0.00015,2]
[422574929,1779114642000,-330.0,0.00015014,3]
[422574927,1779114642000,-151.0,0.00015,2]
[422574921,1779114642000,-153.339106,0.00015,2]
[422574930,1779114642000,-350.0,0.00015087,2]
[422574928,1779114642000,-151.0,0.00015,2]
[422575003,1779114643000,-155.0,0.0002,2]
[422575009,1779114643000,-157.0,0.0002,2]
[422575007,1779114643000,-191.0,0.0002,2]
[422574999,1779114643000,-470.17,0.00019847,2]
[422575006,1779114643000,-154.0,0.0002,2]
[422575001,1779114643000,-500.0,0.0002,2]
[422575010,1779114643000,-159.0,0.0002,2]
[422575000,1779114643000,-3884.0,0.00019894,2]
[422575004,1779114643000,-424.0,0.0002,2]
[422574993,1779114643000,-398.11299808,0.00019,2]
[422574985,1779114643000,-151.0,0.00018944,2]
[422575002,1779114643000,-150.0,0.0002,2]
[422575008,1779114643000,-246.0,0.0002,2]
[422575018,1779114643000,-150.76109754,0.0002058,2]
[422575012,1779114643000,-275.8,0.00020381,2]
[422575013,1779114643000,-5037.79875775,0.00020576,2]
[422575015,1779114643000,-5000.0,0.00020576,2]
[422575011,1779114643000,-470.17,0.00020344,2]
[422575014,1779114643000,-5000.0,0.00020576,2]
[422575016,1779114643000,-5000.0,0.00020576,2]
[422575017,1779114643000,-5000.0,0.00020576,2]
[422575020,1779114643000,-470.17833181,0.0002084,2]
[422575019,1779114643000,-5000.0,0.0002063,2]
[422575021,1779114643000,-301.68,0.00020919,2]
[422575023,1779114643000,-424.0,0.00021,2]
[422575022,1779114643000,-155.0,0.00021,2]
[422574990,1779114643000,-300.0,0.00018999,2]
[422575005,1779114643000,-492.0,0.0002,2]
[422574991,1779114643000,-46947.10731997,0.00019,2]
[422574962,1779114643000,-151.0,0.00018944,2]
[422574988,1779114643000,-151.0,0.00018944,2]
[422575024,1779114643000,-154.0,0.00021,2]
[422574967,1779114643000,-151.0,0.00018944,2]
[422574966,1779114643000,-151.0,0.00018944,2]
[422574958,1779114643000,-987.93343204,0.000189,2]
[422574959,1779114643000,-1113.4286202,0.00018944,2]
[422574960,1779114643000,-151.0,0.00018944,2]
[422574961,1779114643000,-151.0,0.00018944,2]
[422574963,1779114643000,-151.0,0.00018944,2]
[422574964,1779114643000,-151.0,0.00018944,2]
[422574968,1779114643000,-151.0,0.00018944,2]
[422574971,1779114643000,-151.0,0.00018944,2]
[422574969,1779114643000,-151.0,0.00018944,2]
[422574978,1779114643000,-151.0,0.00018944,2]
[422574974,1779114643000,-255.63819332,0.00018944,2]
[422574981,1779114643000,-151.0,0.00018944,2]
[422574980,1779114643000,-151.0,0.00018944,2]
[422574973,1779114643000,-151.0,0.00018944,2]
[422574977,1779114643000,-151.0,0.00018944,2]
[422574976,1779114643000,-151.0,0.00018944,2]
[422574979,1779114643000,-151.0,0.00018944,2]
[422574982,1779114643000,-151.0,0.00018944,2]
[422574984,1779114643000,-151.0,0.00018944,2]
[422574996,1779114643000,-1769.0,0.00019233,5]
[422574995,1779114643000,-807.13,0.000192,2]
[422574983,1779114643000,-151.0,0.00018944,2]
[422574994,1779114643000,-1770.65065623,0.00019,2]
[422574997,1779114643000,-1792.0,0.00019233,5]
[422574986,1779114643000,-151.0,0.00018944,2]
[422575025,1779114643000,-191.0,0.00021,2]
[422574965,1779114643000,-151.0,0.00018944,2]
[422575030,1779114643000,-1224.0,0.00021039,2]
[422575061,1779114643000,-157.75,0.00022831,2]
[422575070,1779114643000,-163.0,0.00023038,3]
[422575060,1779114643000,-679.84,0.00022691,2]
[422575072,1779114643000,-892.34,0.00023087,2]
[422575071,1779114643000,-892.35,0.00023087,2]
[422575067,1779114643000,-191.0,0.00023,2]
[422575066,1779114643000,-154.0,0.00023,2]
[422575069,1779114643000,-164.19920998,0.00023,2]
[422575065,1779114643000,-424.0,0.00023,2]
[422575063,1779114643000,-152.0,0.0002291,7]
[422575064,1779114643000,-163.09958891,0.00023,2]
[422575068,1779114643000,-246.0,0.00023,2]
[422575062,1779114643000,-987.93343204,0.000229,2]
[422575073,1779114643000,-1586.0,0.00023117,3]
[422575075,1779114643000,-301.68,0.00023243,2]
[422575077,1779114643000,-164.0,0.00023249,3]
[422575079,1779114643000,-807.13,0.000233,7]
[422575080,1779114643000,-2000.0,0.00023357,2]
[422575085,1779114643000,-152.0,0.00023524,3]
[422575086,1779114643000,-2313.0,0.00023558,3]
[422575083,1779114643000,-2313.0,0.00023388,3]
[422575084,1779114643000,-162.32,0.00023515,2]
[422575087,1779114643000,-151.0,0.00023605,7]
[422575088,1779114643000,-1586.0,0.00023606,3]
[422575090,1779114643000,-2313.0,0.00023648,3]
[422575089,1779114643000,-1106.99626856,0.00023608,2]
[422575026,1779114643000,-246.0,0.00021,2]
[422575055,1779114643000,-770.0,0.000222,2]
[422575052,1779114643000,-185.0,0.00022041,2]
[422575082,1779114643000,-3258.59,0.00023368,2]
[422575056,1779114643000,-928.0,0.000222,2]
[422575057,1779114643000,-275.8,0.00022353,2]
[422575027,1779114643000,-157.0,0.00021,2]
[422575028,1779114643000,-170.02119813,0.00021,2]
[422575031,1779114643000,-6056.0,0.00021039,2]
[422575029,1779114643000,-2000.0,0.00021022,2]